Cogmind - Beta 17 @@@ ROGUE MODE // 2026.06.24 @ 15:16:37 Player: bw-k4t Result: Self-destructed Performance ------------- Evolutions (1) 500 Regions Visited (2) 400 Robots Destroyed (17) 85 Value Destroyed (448) 448 Prototype IDs (1) 20 Alien Tech Used (0) 0 Bonus (0) 0 TOTAL SCORE: 1453 Bonus ------- None Cogmind --------- Core Integrity 400/400 Matter 270/300 Energy 250/250 System Corruption 0% Temperature Cool (0) Movement Walking (190) Ox1 Location -9/Materials Parts ------- > --- POWER (1) -------- Ion Engine > --- PROPULSION (2) --- Aluminum Leg > --- UTILITY (4) ------ Heat Sink Medium Storage Unit Sensor Array Signal Interpreter > --- WEAPON (2) ------- Medium Laser > --- INVENTORY (10) --- Machine Analyzer Targeting Computer Authchip [Propulsion] Authchip [Device] Authchip [Armor] Authchip [Weapon] Authchip [Weapon] Authchip [Weapon] Recalibrator Peak State ------------ > --- POWER ------------ Light Nuclear Core > --- PROPULSION ------- Aluminum Leg Aluminum Leg > --- UTILITY ---------- Heat Sink Medium Storage Unit > --- WEAPON ----------- Improved EM Shotgun Medium Laser > --- INVENTORY -------- Ion Engine Machine Analyzer Recalibrator Small Laser Assault Rifle Improved Light Cannon Mining Laser [Rating: 12] Favorites ----------- Power Light Nuclear Core Engine Light Ion Engine Power Core Light Nuclear Core Propulsion Aluminum Leg Treads Light Treads Leg Aluminum Leg Wheel Wheel Utility Heat Sink Device Heat Sink Storage Medium Storage Unit Processor Signal Interpreter Weapon Medium Laser Energy Gun Medium Laser Ballistic Gun Light Assault Rifle Ballistic Cannon Improved Light Cannon Special Weapon Mining Laser Build | -11 -10 -9 ------- Run | Yrd Mat Mat Slots Evolved 2 | . . 2 Power . | . . . Propulsion . | . . . Utility 2 | . . 2 Weapon . | . . . Parts Attached 19 | 5 12 2 Power 3 | 1 2 . Engine 2 | 1 1 . Core 1 | . 1 . Reactor . | . . . Propulsion 7 | 2 5 . Treads 2 | . 2 . Leg 3 | . 3 . Wheel 2 | 2 . . Hover . | . . . Flight . | . . . Utility 4 | . 2 2 Device 2 | . 1 1 Storage 1 | . 1 . Processor 1 | . . 1 Hackware . | . . . Protection . | . . . Artifact . | . . . Weapon 5 | 2 3 . Energy Gun 2 | 1 1 . Energy Cannon . | . . . Ballistic Gun 1 | 1 . . Ballistic Cannon 1 | . 1 . Launcher . | . . . Special Weapon 1 | . 1 . Impact Weapon . | . . . Slashing Weapon . | . . . Piercing Weapon . | . . . Special Melee Weapon . | . . . Unidentified Prototypes 1 | . 1 . Parts Lost 4 | . 4 . Power 1 | . 1 . Propulsion 1 | . 1 . Utility . | . . . Weapon 2 | . 2 . Highest Loss Streak 1 | . 1 . To Critical Strikes 1 | . 1 . Average Backups 6 | . 7 8 Power . | . . . Propulsion . | . . . Utility 5 | . 5 8 Weapon . | . 1 . Tool/Special . | . . . Unused Backups 12 | . 4 8 Power 1 | . 1 . Propulsion 1 | . 1 . Utility 8 | . . 8 Weapon 2 | . 2 . Tool/Special . | . . . Average Slot Usage (%) 78 | . 78 75 Engine 3 | . 2 11 Core 6 | . 7 . Treads 7 | . 8 . Leg 11 | . 11 11 Wheel 4 | . 4 . Device 13 | . 11 22 Storage 10 | . 9 11 Processor 1 | . . 9 Energy Gun 13 | . 14 11 Ballistic Gun 4 | . 4 . Special Weapon 1 | . 1 . Peak Build Rating 12 | 5 12 10 Average Rating 8 | 3 8 9 On Entrance 4 | . 5 8 Avg Prop Armor Cover (%) . | . . . Naked Turns . | . . . Heaviest Build 22 | 6 22 19 Greatest Support 40 | 20 40 10 Greatest Overweight (x) 1 | . 1 1 Average Overweight (x) . | . . 1 Largest Inventory Capacity 10 | 5 10 10 Average Capacity 8 | 5 8 10 Most Carried 10 | 1 10 9 Average Carried 6 | . 7 8 Final Capacity 10 | 5 10 10 Final Carried 10 | 1 10 9 Class Distribution -------------------- 61% | Mutant 38% | Scavenger-Mutant Dominant Class ---------------- Mutant | -10/Materials Mutant | -9/Materials Resources | -11 -10 -9 ----------- Run | Yrd Mat Mat Matter Collected 391 | 254 137 . Remotely . | . . . Salvage Created 579 | 32 547 . Parts 34 | 3 31 . Haulers Intercepted 1 | . 1 . Recyclers Shooed 2 | . 2 . Parts Field Recycled . | . . . Retrieved Matter . | . . . Parts Self-Destructed . | . . . Prevented . | . . . Parts Restored . | . . . Kills | -11 -10 -9 ------- Run | Yrd Mat Mat Combat Hostiles Destroyed 13 | 1 12 . Guns 11 | 1 10 . Cannons 2 | . 2 . Classes Destroyed 6 | 1 5 . Worker 1 | . 1 . Hauler 1 | . 1 . Mechanic 1 | . 1 . Operator 1 | . 1 . Swarmer 3 | . 3 . Grunt 10 | 1 9 . Best Kill Streak 5 | 1 5 . Combat Bots Only 4 | 1 4 . Max Kills in Single Turn 1 | 1 1 . Gunslinging . | . . . Exploded . | . . . Melee . | . . . Uniques/NPCs Destroyed . | . . . Combat | -11 -10 -9 -------- Run | Yrd Mat Mat Hostile Shots Fired 91 | 5 81 5 Missed 34 | 3 29 2 Hits 57 | 2 52 3 Projectile 57 | 2 52 3 Critical Strikes 1 | . 1 . Damage Taken 668 | 24 599 45 Core 114 | . 114 . Absorbed by Shields . | . . . Regen/Repaired (Parts) 18 | . 18 . Core Remaining (%) 77 | 100 54 . Volleys Fired 89 | 4 85 . Largest 2 | 2 2 . Hottest 150 | 70 150 . Shots Fired 121 | 8 113 . Gun 113 | 8 105 . Cannon 2 | . 2 . Launcher . | . . . Special 6 | . 6 . Kinetic 28 | 4 24 . Thermal 93 | 4 89 . Explosive . | . . . Electromagnetic . | . . . Robot Hit Streak 11 | 4 11 . Robot Miss Streak 5 | 1 5 . Penetration Max . | . . . Secondary Targets . | . . . Shots Hit Robots 76 | 6 70 . Core Hits 33 | 2 31 . Critical Kills . | . . . Critical Parts Destroyed . | . . . Critical Strikes 7 | . 7 . Burn 7 | . 7 . Melee Attacks . | . . . Impact . | . . . Slashing . | . . . Piercing . | . . . Sneak Attacks . | . . . Combat Hostiles . | . . . Follow-up Attacks . | . . . Damage Inflicted 901 | 71 830 . Guns 855 | 71 784 . Cannons 21 | . 21 . Explosions . | . . . Melee . | . . . Ramming 1 | . 1 . Kinetic 176 | 21 155 . Thermal 724 | 50 674 . Explosive . | . . . Electromagnetic . | . . . Impact . | . . . Slashing . | . . . Piercing . | . . . Highest Corruption . | . . . Average Corruption . | . . . Corruption Purged . | . . . Corruption Blocked . | . . . Overload Shots . | . . . Overflow Damage . | . . . Projectiles . | . . . Explosions . | . . . Melee . | . . . Knockbacks . | . . . Impact . | . . . Kinetic . | . . . Secondary . | . . . Self-Inflicted Damage . | . . . Shots . | . . . Rammed 1 | . 1 . Targets Rammed 1 | . 1 . Kicked . | . . . Crushed . | . . . Highest Temperature 169 | 92 169 . Average Temperature 36 | 41 36 . Received Heat Transfer 315 | 12 303 . Siege Activations . | . . . Martial Activations . | . . . Shielding Activations . | . . . Robots Disrupted . | . . . Combat Hostiles . | . . . Robots Corrupted . | . . . Combat Hostiles . | . . . Parts Fried . | . . . Impact Corruptions . | . . . Robots Melted . | . . . Combat Hostiles . | . . . Parts Melted 5 | . 5 . Heat Transferred 2640 | 148 2492 . Parts Sabotaged . | . . . Parts Stolen . | . . . Parts Stripped . | . . . Power Chain Reactions . | . . . Alert | -11 -10 -9 ------- Run | Yrd Mat Mat Maximum Alert Level . | . . . Low Security (%) 100 | 100 100 100 Level 1 . | . . . Level 2 . | . . . Level 3 . | . . . Level 4 . | . . . Level 5 . | . . . High Security . | . . . Max Security . | . . . Peak Influence 142 | 20 142 32 Initial 32 | . 13 32 Average 62 | 3 72 17 Influence Increases 427 | 20 407 . Destroy 0b10 Robot/C 260 | 20 240 . Destroy 0b10 Robot/NC 20 | . 20 . Destroy Leader 52 | . 52 . Successful Hack 20 | . 20 . Disable Machine 30 | . 30 . Lose Combat Pursuer 45 | . 45 . Influence Decreases 425 | . 349 76 Entered New Map 53 | . 7 46 Time Decay 332 | . 302 30 Lost Part 40 | . 40 . Squads Dispatched 3 | . 2 1 Investigation 2 | . 2 . Extermination . | . . . Reinforcement 1 | . . 1 Assault . | . . . Garrison . | . . . Intercept . | . . . Searches Triggered . | . . . Construction Impeded . | . . . Haulers Reinforced . | . . . Active Scanning Responses . | . . . Cargo Convoy Interrupts . | . . . Stealth | -11 -10 -9 --------- Run | Yrd Mat Mat Distress Signals . | . . . Communications Jammed . | . . . Distress Signals . | . . . Times Spotted 27 | 1 25 1 Peak Tracking Total 4 | 1 4 3 Tactical Retreats 1 | . 1 . Traps | -11 -10 -9 ------- Run | Yrd Mat Mat Traps Triggered 2 | . 2 . Indirectly . | . . . Trap Hack Attempts . | . . . Triggered . | . . . Disarmed . | . . . Reprogrammed . | . . . Reused . | . . . Traps Extracted . | . . . Installed . | . . . Triggered . | . . . Machines | -11 -10 -9 ---------- Run | Yrd Mat Mat Machines Disabled 2 | . 2 . Max in Single Turn 1 | . 1 . Machines Repaired . | . . . Machines Dismantled . | . . . Machines Sabotaged . | . . . Overloaded Fab Kills . | . . . Hacking | -11 -10 -9 --------- Run | Yrd Mat Mat Machines Accessed 6 | . 5 1 Terminals 3 | . 2 1 Fabricators . | . . . Repair Stations 1 | . 1 . Recycling Units 2 | . 2 . Scanalyzers . | . . . Garrison Access . | . . . Total Hacks 10 | . 9 1 Successful 9 | . 8 1 Failed 1 | . 1 . Catastrophic . | . . . Database Lockouts . | . . . Manual 2 | . 2 . Terminals 5 | . 4 1 Fabricators . | . . . Repair Stations 2 | . 2 . Recycling Units 3 | . 3 . Scanalyzers . | . . . Garrison Access . | . . . Terminal Hacks 4 | . 3 1 Record 4 | . 3 1 Fabricator Hacks . | . . . Repair Station Hacks 2 | . 2 . Scan Component 1 | . 1 . Repair 1 | . 1 . Recycling Unit Hacks 1 | . 1 . Retrieve Components 1 | . 1 . Scanalyzer . | . . . Garrison Access Hacks . | . . . Unauthorized Hacks 2 | . 2 . Terminals 1 | . 1 . Detonate 1 | . 1 . Fabricators . | . . . Repair Stations . | . . . Recycling Units 1 | . 1 . Monitor 1 | . 1 . Scanalyzers . | . . . Garrison Access . | . . . Data Cores Recovered 1 | . 1 . Used . | . . . Hacking Detections 2 | . 2 . Full Trace Events . | . . . Feedback Events . | . . . Feedback Blocked . | . . . Robot Schematics Acquired . | . . . Robots Built . | . . . Authchips . | . . . Time . | . . . Total Robot Build Rating . | . . . Part Schematics Acquired . | . . . Parts Built . | . . . Authchips . | . . . Time . | . . . Total Part Build Rating . | . . . Part Studies Acquired . | . . . Parts Repaired 1 | . 1 . Time 38 | . 38 . Parts Recycled . | . . . Recycled Matter . | . . . Retrieved Matter . | . . . Retrieved Components 3 | . 3 . Parts Scanalyzed . | . . . Part Schematics Acquired . | . . . Parts Damaged . | . . . Bothacking | -11 -10 -9 ------------ Run | Yrd Mat Mat Used RIF Installer . | . . . Robots Hacked . | . . . Non-combat . | . . . Combat . | . . . Robot Hacks Applied . | . . . Relay Couplers Released . | . . . Fabnet Peak Effective % . | . . . Robots Rewired . | . . . Allies Hacked . | . . . Hacks Repelled . | . . . Allies | -11 -10 -9 -------- Run | Yrd Mat Mat Total Allies . | . . . Largest Group . | . . . Highest-Rated Group . | . . . Highest-Rated Ally . | . . . Total Orders . | . . . Ally Attacks . | . . . Total Damage . | . . . Kills . | . . . Allies Corrupted . | . . . Allies Melted . | . . . Intel | -11 -10 -9 ------- Run | Yrd Mat Mat Active Infowar (turns) 74 | . . 74 Sensors 74 | . . 74 Robot Analysis Total . | . . . Derelict Logs Recovered . | . . . Drone Launches . | . . . Drone Recoveries . | . . . Exploration | -11 -10 -9 ------------- Run | Yrd Mat Mat Turns Passed 805 | 59 672 74 Spaces Moved 373 | 55 281 37 Core 15 | 15 . . Treads 47 | . 47 . Legs 204 | . 167 37 Wheels 107 | 40 67 . Hover . | . . . Flight . | . . . Fastest Speed 50 | 50 80 190 Average Speed 132 | 71 137 190 Slowest Speed 190 | 80 190 190 Overloaded Moves . | . . . Propulsion Burnouts . | . . . Robots Hopped . | . . . Potential Cave-ins . | . . . Cave-ins Triggered . | . . . Exploration Rate (%) 18 | 6 44 6 Regions Visited 2 Branch Regions . Pre-discovered Areas . | . . . Known Exits Taken . | . . . Unknown Exits Taken 2 | 1 1 . Scrap Searched . | . . . Spaces Dug . | . . . Terrain Destroyed . | . . . Melee . | . . . Projectile . | . . . AOE . | . . . Terrain Rammed . | . . . Walls Destroyed . | . . . Machines Disabled . | . . . Actions | -11 -10 -9 --------- Run | Yrd Mat Mat Total 551 | 64 447 40 Wait 38 | . 38 . Move 371 | 54 280 37 Hop . | . . . Pick Up 18 | 1 16 1 Fast Attach 13 | 5 8 . Attach 5 | . 3 2 Detach 1 | . 1 . Swap 3 | . 3 . Drop 12 | . 12 . Fire 89 | 4 85 . Melee . | . . . Ram . | . . . Kick . | . . . Crush 1 | . 1 . Escape Stasis . | . . . Rewire . | . . . Trap . | . . . Miscellaneous . | . . . Route ------- -11/Scrapyard -10/Materials (discovered 2 exits: *Mat / [*Min]) -9/Materials History --------- Turn | Location | Event 2 | -11/Scrapyard | Met Revision 17 39 | -11/Scrapyard | Discovered new exit (range 8) 60 | -11/Scrapyard | Entered Materials 213 | -10/Materials | Discovered new exit (range 15) 397 | -10/Materials | Discovered new exit (range 13) 448 | -10/Materials | Repaired Lgt. Nuclear Core 732 | -10/Materials | Entered another Materials area 732 | -9/Materials | Evolved 2 slots: Utility x2 806 | -9/Materials | Self-destructed Last Messages --------------- GOAL=ESCAPE Acquired Targeting Computer. Connecting with Terminal... Current location identified: Materials >>Query(Traps) [Complex 0b10]'s rapid expansion has left defensive assets stretched thin in many areas. To temporarily address the growing threat of a larger [Derelict] incursion, a number of traps are being engineered and deployed as a more efficient way to hinder enemy advances and buy the time necessary to mobilize a garrisoned response force. Because traps are installed in areas regularly traveled by even non-combat robots, their sensitivity is set well below their maximum potential to avoid disruptions that could result from a damaged robot accidentally triggering one. ALERT: Hostiles spotted, dispatching reinforcements to Terminal M009. Map ----- +----------------------------------------------------+ | ???????????????????????????????????? | | ???????????????????????????????????? | | ???????????????????????????????????? | | ???????????????????????????????????? | | ???????????????????????????????????? | | ???????????????????????????????????? | | ???????????????????????????????????? | | ???????????????????????????????????? | | ???????????????????????????????????? | | ???????????????????????????????????? | | ???????????????????????????????????? | | ???????????????????????????????????? | | ????????????x??????????????????????? | | ??????????????########?????????????# | | ??????????????# #??????????? # | | ??????????????# "" ########### # | | ??????????????# T" ## | | ??????????????# "" ## | | ??????????????# ## | | ??????????????# ## | | ???????###########+#### | | ???????# | | ???????# | | ???????# | | ???????####/#################### # | | ???????# @ #??????????????????# | | ???????# #??????????????????? | | ???????# #??????????????????? | | ???????# #??????????????????? | | ???????# #??????????????????? | | ???????# #??????????????????? | | ???????# #??????????????????? | | ???????# #??????????????????? | | ???????# #??????????????????? | | ???????##########??????????????????? | | ???????????????????????????????????? | | ???????????????????????????????????? | | ???????????????????????????????????? | | ???????????????????????????????????? | | ???????????????????????????????????? | | ???????????????????????????????????? | | ???????????????????????????????????? | | ???????????????????????????????????? | | ???????????????????????????????????? | | ???????????????????????????????????? | | ???????????????????????????????????? | | ???????????????????????????????????? | | ???????????????????????????????????? | | ???????????????????????????????????? | | ???????????????????????????????????? | +----------------------------------------------------+ Best States ------------- Heat Dissipation 38 Energy Generation 14 Energy Capacity 250 Matter Stores 300 Matter Capacity 300 Sight Range 16 Robot Scan Range 14 Terrain Scan Density 10 Evasion (%) 55 Recoil Reduction 2 Authchip Count 6 Item Schematics ----------------- None Robot Schematics ------------------ None Fabricated ------------ Nothing Repaired ---------- Lgt. Nuclear Core | 64% | -10/Materials Studied --------- None Alien Tech Used ----------------- None Achievements -------------- True Hacker Challenges ------------ None Game ------ Seed SalvageGuidedMatterbank Manual? 0 Play Time 00:12:09 Cumulative 2.1 hours Start 2026.06.24 @ 15:02:25 End 2026.06.24 @ 15:16:37 Sessions 1 Manual Loads 0 Difficulty Rogue Special Mode None Game No. 3 Rogue 3 Adventurer 0 Explorer 0 Win Type - Total 0 Types 0/0/0/0/0/0/0/0/0/0 Lore% 3 Gallery% 5 Achievement% 8 Wizard Run 0 Options --------- Layout 1 ASCII 0 Keyboard 0 Movement Mouse Keybinds 0 Fullscreen 1 Font 18/SmallcapsGlow Map View 50x40 Zoom Use 0% Tactical HUD 0 Map Filters NONE Filters NONE Steam 1 RUN: 2fdbb2f6-9608-4249-a23d-c4929954cb52